{"text_format":"2","workbook":"xlsx","n_sheets":2,"sheets":["政务数据资源中心","政务数据资源中心（前端）"],"not_rendered":{"charts":0,"images":0,"macros":0,"external_links":0,"defined_names":0,"comments":1,"pivot_tables":0},"unopened":[],"bounds":{"document_bytes":16777216,"sheet_cells":100000,"run_cost":"one","rows_first":2000,"rows_last":500,"rows_between":2000,"halvings":0,"cell_chars":16384,"cell_head_chars":4096},"cells_cut":0,"cells_raw":0,"read":"whole","date_system":"1900"}

{"sheet":"政务数据资源中心","index":0,"n_rows":48,"n_cols":11,"rows_kept":48,"cut":false,"hidden":false,"merged":[[47,0,47,1],[1,0,1,9],[2,1,41,1],[2,2,9,2],[10,2,15,2],[16,2,26,2],[27,2,31,2],[32,2,41,2],[42,1,42,6],[43,0,43,9],[44,2,44,4],[45,0,45,9],[46,2,46,4]]}
["序号","系统","子系统","模块","功能","数量\n(人·天)","单价\n（元）","总价\n（元）","人员级别","备注"]
["一、软件模块开发"]
[1,"政务数据资源中心","数据采集平台","物联网数据实时采集","物联网数据实时对接采集",30,850,{"$f":"F3*G3","v":25500},"高级软件工程师"]
[2,null,null,"数据库对接采集","统建政务系统数据库数据对接采集",30,850,25500,"高级软件工程师"]
[3,null,null,"文件对接采集","政务业务归档文件对接采集",30,850,25500,"高级软件工程师",null,288]
[4,null,null,"接口数据源对接采集","统建政务系统接口数据源对接采集",30,850,25500,"高级软件工程师",null,288]
[5,null,null,"数据填报模块","政务业务纸质文档和电子文档模版填报",30,850,25500,"高级软件工程师",null,208]
[7,null,null,"数据分发模块","提供数据追加、数据覆盖、数据更新、更新插入等分发方式将数据追加到目标表的能力",30,850,25500,"高级软件工程师",null,256]
[8,null,null,"实时传输监控","基于相关技术的实时数据传输处理，实现结构化、半结构化数据的实时入库",20,850,17000,"高级软件工程师",null,208]
[9,null,null,"传输校验模块","提供对传输前后数据对比校验功能，传输过程边设计边对比，从数据层面来验证处理逻辑的准确性",20,850,17000,"高级软件工程师",null,288]
[14,null,"数据处理平台","离线任务处理","提供配置交换任务作为基础数据交换单元，可移动、编辑、克隆、导入导出、发布交换任务，交换支持多种方式的文件传输",30,850,25500,"高级软件工程师",null,224]
[15,null,null,"数据实时处理","提供设计实时数据仓库技术任务，通过实时数据聚合、过滤、清洗、自定义实时数据处理脚本，满足多种实时数据传输场景",30,850,25500,"高级软件工程师",null,224]
[16,null,null,"数据清洗转换","实现数据清洗转换，清洗转换规则含数据行级清洗和字段级清洗，行级清洗包含：行记录过滤、去重、抽样等，字段级清洗包括：字段的拆分、分割、合并、替换、格式转换等",15,850,12750,"高级软件工程师",null,240]
[17,null,null,"数据脱敏加密","对数据的传输进行加密，内置大量的数据脱敏算法，对系统和数据的操作行为审计，来保证数据的安全性",20,850,17000,"高级软件工程师",null,152]
[18,null,null,"数据校验模块","提供对交换前后数据对比校验功能",20,850,17000,"高级软件工程师",null,128]
[19,null,null,"模型管理模块","提供统一的可视化界面，维护属性信息、检索信息的能力",20,700,14000,"软件工程师",null,120]
[24,null,"数据治理平台","元数据采集模块","获取数据资源元数据，包括自动采集和手动采集",30,850,25500,"高级软件工程师",null,240]
[27,null,null,"标签管理","通过在标签管理中维护业务元数据分类、业务标签等业务元数据信息",15,850,12750,"高级软件工程师",null,152]
[29,null,null,"元数据查询","提供按数据源和检索条件进行查询",10,700,7000,"软件工程师",null,96]
[31,null,null,"数据标准管理","包括业务术语、国家标准、行业标准以及地方标准等的体系管控能力",10,700,7000,"软件工程师",null,72]
[32,null,null,"数据质量管理总览","通过数据质量治理可视化指标呈现，让用户全局掌控数据质量治理成果",20,850,17000,"高级软件工程师",null,96]
[33,null,null,"业务\\技术规则管理","支持质量定义、需求管理、规则管理以及质量评价模型管理等基础能力",20,850,17000,"高级软件工程师",null,192]
[41,null,null,"数据安全规范管理","包括数据安全策略、数据安全流程和数据安全标准",10,850,8500,"高级软件工程师",null,48]
[42,null,null,"数据访问授权","采取访问控制措施限制对产生数据的数据源和数据存储系统的访问",30,850,25500,"高级软件工程师",null,128]
[43,null,null,"身份鉴别","对登录的用户、进程/应用进行身份标识和鉴别",10,850,8500,"高级软件工程师",null,192]
[44,null,null,"分类分级控制","对数据制定分类分级策略，并利用技术工具结合分类分级策略进行数据分类分级，并结合分类分级结果对数据进行标识和控制",10,850,8500,"高级软件工程师",null,144]
[45,null,null,"数据备份恢复","将数据容器里的数据,在某个时间复制到另外一个数据容器",10,850,8500,"高级软件工程师",null,240]
[54,null,"数据监控平台","统一监控中心","实时监控运行引擎及数据处理流程，统计问题数据处理状况",20,850,17000,"高级软件工程师",null,160]
[55,null,null,"可视化预警","可视化预警实时数据问题，降低数据安全风险",10,850,8500,"高级软件工程师",null,144]
[56,null,null,"节点监控模块","通过界面化方式展示节点数据源、调度任务、CPU、内存、磁盘使用情况",15,850,12750,"高级软件工程师",null,240]
[58,null,null,"异常监控模块","提供对实时调度、定时调度任务的执行做异常监控，查询执行异常日志详情",15,850,12750,"高级软件工程师",null,96]
[59,null,null,"系统监控模块","提供详细的系统运营情况监控报告",20,850,17000,"高级软件工程师",null,72]
[60,null,"数据交换共享平台","资源目录管理","对已有数据资源、服务资源，按照目录规范进行目录编制",30,850,25500,"高级软件工程师",null,240]
[61,null,null,"资源目录分类管理","管理维护资源目录分类",10,850,8500,"高级软件工程师",null,96]
[62,null,null,"资源目录维护","管理维护资源目录",10,850,8500,"高级软件工程师",null,160]
[63,null,null,"资源目录检索","支持资源目录的快速检索",20,850,17000,"高级软件工程师",null,240]
[64,null,null,"数据消费模块","通过资源申请方式申请主题分类资源树中的数据实体资源",30,850,25500,"高级软件工程师",null,256]
[65,null,null,"数据消费审批","对发起的数据消费进行审批",10,850,8500,"高级软件工程师",null,152]
[66,null,null,"消费认证授权","对数据消费方提出的数据使用申请，管理员通过服务授权机制进行服务授权。通过对服务状态进行管理，控制服务能否被消费方访问调用",30,850,25500,"高级软件工程师",null,144]
[67,null,null,"数据服务开发","数据服务开发提供在线作业、离线作业等方式进行多种抽取和汇总，提供数据抽取、库表同步、文件同步等方式的批量数据服务和单表、结果集方式的接口服务",20,850,17000,"高级软件工程师",null,288]
[68,null,null,"数据服务监控","对数据服务共享工具上的作业、文件传输和服务运行状态的监控",10,850,8500,"高级软件工程师",null,96]
[69,null,null,"接口管理","对管理类、服务类接口等，进行接口信息等内容的管理",30,850,25500,"高级软件工程师",null,208]
[70,"小计",{"$nulls":5},{"$f":"SUM(H3:H42)","v":682500}]
["二、系统集成"]
[1,"系统集成费","按照软件费用的10%计提",null,null,1,{"$f":"H43*0.1","v":68250},{"$f":"F45*G45","v":68250}]
["三、系统运维"]
[1,"软件运维","软件运维（平均每年按照软件费用的5%计提）",null,null,3,{"$f":"H43*0.05","v":34125},{"$f":"F47*G47","v":102375}]
["费用总计",{"$nulls":6},{"$f":"H43+H45+H47","v":853125}]

{"sheet":"政务数据资源中心（前端）","index":1,"n_rows":28,"n_cols":4,"rows_kept":28,"cut":false,"hidden":false,"merged":[[1,0,12,0],[13,0,17,0],[18,0,27,0]]}
["子系统","模块","功能","功能设计描述"]
["数据治理平台","元数据采集模块","获取数据资源元数据，包括自动采集和手动采集","EsDataClean：http://114.116.205.193:8086/ccdemo/eportal/pcportal/portal.do?portalid=QCS6 \n适配器管理、数据源管理、采集任务配置、采集日志、入库审核。"]
[null,"标签管理","通过在标签管理中维护业务元数据分类、业务标签等业务元数据信息","业务元数据分类的增删改查，分类下业务标签的增删改查。"]
[null,"元数据查询","提供按数据源和检索条件进行查询","列表展示：元数据名称、代码、类型、创建者、创建时间。支持内容搜索。参考：EsDataClean-元数据管理-最新元数据。"]
[null,"数据标准管理","包括业务术语、国家标准、行业标准以及地方标准等的体系管控能力","业务术语（名称、描述）：增删改查；\n国家标准、行业标准、地方标准：导入、查询、删除。"]
[null,"数据质量管理总览","通过数据质量治理可视化指标呈现，让用户全局掌控数据质量治理成果","参考：EsDataClean 数据质量监控。"]
[null,"业务\\技术规则管理","支持质量定义、需求管理、规则管理以及质量评价模型管理等基础能力","参考：EsDataClean-数据质量-业务规则库。"]
[null,"数据安全规范管理","包括数据安全策略、数据安全流程和数据安全标准","提供数据安全规范上传、下载和删除功能，上传文件支持多种文本格式。用户通过下载查看对应的安全规范。"]
[null,"数据访问授权","采取访问控制措施限制对产生数据的数据源和数据存储系统的访问","见“数据库权限管理”"]
[null,"身份鉴别","对登录的用户、进程/应用进行身份标识和鉴别"]
[null,"分类分级控制","对数据制定分类分级策略，并利用技术工具结合分类分级策略进行数据分类分级，并结合分类分级结果对数据进行标识和控制","分级策略的增删改查，按敏感程度划分：1级-公开数据，2级-内部数据，3级-私密数据，4级-机密数据。\n分类策略增删改查，根据政务数字化应用场景划分：经济调节数据、市场监管数据、公共服务数据、社会管理数据、生态环境保护数据等。"]
[null,"数据备份恢复","将数据容器里的数据,在某个时间复制到另外一个数据容器","用户手动备份/系统自动备份，参考：https://help.aliyun.com/document_detail/59590.html "]
[null,"模型管理模块","提供统一的可视化界面，维护属性信息、检索信息的能力"]
["数据监控平台","统一监控中心","实时监控运行引擎及数据处理流程，统计问题数据处理状况","节点监控、异常监控、系统监控整合？或者参考 EsDataClean-首页？"]
[null,"可视化预警","可视化预警实时数据问题，降低数据安全风险","列表展示实时数据的准确性、及时性（积压）预警信息：预警内容、预警等级、预警时间。"]
[null,"节点监控模块","通过界面化方式展示节点数据源、调度任务、CPU、内存、磁盘使用情况","节点数据源？\n列表展示：调度任务（任务类型、任务名称、上次运行时间、下次运行时间、运行状态）；\n图表展示：当前CPU、内存、磁盘使用情况。"]
[null,"异常监控模块","提供对实时调度、定时调度任务的执行做异常监控，查询执行异常日志详情","列表展示：任务类型、任务名称、上次运行时间、下次运行时间、运行状态、操作（日志查看）。"]
[null,"系统监控模块","提供详细的系统运营情况监控报告","图表展示：系统运行状态、资源（CPU/内存/磁盘）占用情况、数据表存储占用情况；\n列表展示：错误问题。"]
["数据交换共享平台","资源目录管理","对已有数据资源、服务资源，按照目录规范进行目录编制","对目录树进行增加、修改、删除操作。参见：资源目录管理。"]
[null,"资源目录分类管理","管理维护资源目录分类","对目录分类进行增加、修改、删除操作。分类信息：分类名称、分类编码、分类描述。"]
[null,"资源目录维护","管理维护资源目录","与上面的“资源目录管理”内容重复？"]
[null,"资源目录检索","支持资源目录的快速检索","增加筛选框，对目录树进行快速定位。"]
[null,"数据消费模块","通过资源申请方式申请主题分类资源树中的数据实体资源","资源目录树支持选择功能，填写申请人，点击“消费申请”或“取消”按钮。"]
[null,"数据消费审批","对发起的数据消费进行审批","审批modal：审批意见输入框、同意/拒绝按钮。参见：数据消费审批。"]
[null,"消费认证授权","对数据消费方提出的数据使用申请，管理员通过服务授权机制进行服务授权。通过对服务状态进行管理，控制服务能否被消费方访问调用","web服务IP白名单管理。"]
[null,"数据服务开发","数据服务开发提供在线作业、离线作业等方式进行多种抽取和汇总，提供数据抽取、库表同步、文件同步等方式的批量数据服务和单表、结果集方式的接口服务","单表 RESTful 服务发布等，见“数据共享交换管理-操作手册.pdf”chapter7.3"]
[null,"数据服务监控","对数据服务共享工具上的作业、文件传输和服务运行状态的监控","最近一次作业运行状态列表、文件传输实时进度。见“数据共享交换管理-操作手册.pdf”chapter7.6.1"]
[null,"接口管理","对管理类、服务类接口等，进行接口信息等内容的管理","接口的增删改查、发布。"]